bitfinex/quotes_BTCUSD_20250830
["timestamp","ask_amount","ask_price","bid_price","bid_amount"]
[1756565253217,0.34538398,108880.0,108870.0,1.32701268]
[1756565253433,4.768e-05,108880.0,108870.0,1.32701268]
[1756565253640,0.34538398,108880.0,108870.0,1.32701268]
[1756565254063,0.00453294,108900.0,108890.0,0.18367159]
[1756565254297,0.69520554,108900.0,108890.0,0.41504159]
[1756565254497,0.6906726,108900.0,108890.0,0.41504159]
[1756565254907,0.6906726,108900.0,108890.0,0.44265659]
[1756565255349,0.19569583,108910.0,108890.0,0.44265659]
[1756565255563,0.6906726,108900.0,108890.0,0.44265659]
[1756565255772,0.6906726,108900.0,108890.0,0.5356366]
[1756565256635,0.20621233,108910.0,108890.0,0.5358766]
[1756565256838,0.0010001,108900.0,108890.0,0.3799566]
[1756565257048,0.6916727,108900.0,108890.0,0.7858766]
[1756565257247,0.6906726,108900.0,108890.0,0.7858766]
[1756565257698,0.6906726,108900.0,108890.0,0.82647435]
[1756565257880,0.20521233,108910.0,108900.0,0.18365472]
[1756565258165,0.91308302,108910.0,108900.0,0.18870472]
[1756565259590,0.91308302,108910.0,108900.0,0.00505]
[1756565259795,0.91308302,108910.0,108890.0,0.82142435]
[1756565259931,0.6916727,108900.0,108890.0,0.82442435]
[1756565260135,0.6906726,108900.0,108890.0,0.82647435]
[1756565260451,0.6906726,108900.0,108890.0,0.67055435]
[1756565260662,0.6906726,108900.0,108890.0,0.82655435]
[1756565260820,0.6906726,108900.0,108890.0,0.82659435]
[1756565261026,0.87432732,108900.0,108890.0,0.48583276]
[1756565261233,0.87432732,108900.0,108890.0,0.82550435]
[1756565261477,0.87432732,108900.0,108890.0,0.82750435]
[1756565261682,0.18365472,108900.0,108890.0,0.82750435]
[1756565261977,0.87432732,108900.0,108890.0,0.82750435]
[1756565262601,0.18365472,108900.0,108890.0,0.82963435]
[1756565262959,0.87432732,108900.0,108890.0,0.82758435]
[1756565264622,0.18365472,108900.0,108890.0,0.48483276]
[1756565264830,1.21966362,108900.0,108890.0,0.60335501]
[1756565265047,1.21966362,108900.0,108890.0,0.57574001]
[1756565265048,0.87432732,108900.0,108890.0,0.57574001]
[1756565265265,0.18365472,108900.0,108890.0,0.32779001]
[1756565265482,0.87432732,108900.0,108890.0,0.5114616]
[1756565266135,0.87432732,108900.0,108890.0,0.7614616]
[1756565267017,0.6906726,108900.0,108890.0,0.7614616]
[1756565267667,0.23282533,108910.0,108890.0,0.7614616]
[1756565267879,0.87532742,108900.0,108890.0,0.7584616]
[1756565268084,0.87432732,108900.0,108890.0,0.80032557]
[1756565268561,0.87432732,108900.0,108890.0,0.80332557]
[1756565268739,0.87432732,108900.0,108890.0,0.79827557]
[1756565268989,0.87432732,108900.0,108890.0,0.80032557]
[1756565270438,0.87432732,108900.0,108890.0,0.80140557]
[1756565270631,0.87432732,108900.0,108890.0,0.80340557]
[1756565271056,0.87432732,108900.0,108890.0,0.64720557]
[1756565271262,1.21966362,108900.0,108890.0,0.32364]
[1756565271497,1.21966362,108900.0,108890.0,0.47984]
[1756565272101,0.18365472,108900.0,108890.0,0.48491]
[1756565272393,0.87432732,108900.0,108890.0,0.66858159]
[1756565274376,1.21966362,108900.0,108890.0,0.48499]
[1756565275042,0.87432732,108900.0,108890.0,0.48499]
[1756565275256,0.87432732,108900.0,108890.0,0.66866159]
[1756565276218,0.6906726,108900.0,108890.0,0.66866159]
[1756565276684,0.87432732,108900.0,108890.0,0.66866159]
[1756565277481,0.87432732,108900.0,108890.0,0.7616416]
[1756565278110,0.87432732,108900.0,108890.0,0.6053616]
[1756565278317,0.87432732,108900.0,108890.0,0.7616016]
[1756565280312,0.89156261,108900.0,108890.0,0.8744616]
[1756565280521,0.89156261,108900.0,108890.0,0.68881001]
[1756565280723,0.89156261,108900.0,108890.0,0.84505001]
[1756565280928,1.23689891,108900.0,108890.0,0.84505001]
[1756565281131,1.23689891,108900.0,108890.0,0.59505001]
[1756565281332,0.89156465,108900.0,108890.0,0.43572001]
[1756565281565,1.23690095,108900.0,108890.0,0.59196001]
[1756565281768,1.21966362,108900.0,108890.0,0.59505001]
[1756565282044,1.23690128,108900.0,108890.0,0.59505001]
[1756565282434,1.23690128,108900.0,108890.0,0.59703001]
[1756565282641,0.70791026,108900.0,108890.0,0.59703001]
[1756565282894,0.89156498,108900.0,108890.0,0.59703001]
[1756565283825,0.89156498,108900.0,108890.0,0.59707001]
[1756565284036,0.89156498,108900.0,108890.0,0.59703001]
[1756565285784,0.89156498,108900.0,108890.0,0.7807016]
[1756565285986,0.89156498,108900.0,108890.0,1.0307016]
[1756565286633,0.89156498,108900.0,108890.0,0.84703001]
[1756565287086,0.20089238,108900.0,108890.0,1.0307016]
[1756565287293,0.70791026,108900.0,108890.0,1.0307016]
[1756565287492,0.89156498,108900.0,108890.0,1.0307016]
[1756565287926,0.70791026,108900.0,108890.0,1.0307016]
[1756565288127,0.89156498,108900.0,108890.0,1.0307016]
[1756565288361,0.70791026,108900.0,108890.0,1.0307016]
[1756565288557,0.89156498,108900.0,108890.0,0.8744616]
[1756565288981,0.89156498,108900.0,108890.0,1.0307816]
[1756565289189,0.70791026,108900.0,108890.0,1.0307816]
[1756565289359,0.70791026,108900.0,108890.0,0.8744616]
[1756565289567,0.70791026,108900.0,108890.0,1.0307816]
[1756565289568,0.89156498,108900.0,108890.0,1.0307816]
[1756565289999,0.89156498,108900.0,108890.0,0.84711001]
[1756565291032,0.89156498,108900.0,108890.0,1.0307816]
[1756565291655,0.87432732,108900.0,108890.0,1.0307816]
[1756565291884,0.89157216,108900.0,108890.0,1.0307816]
[1756565292731,0.70791744,108900.0,108890.0,1.0307816]
[1756565293179,0.6906726,108900.0,108890.0,1.0307816]
[1756565294346,0.23282533,108910.0,108890.0,1.0307816]
[1756565294550,0.6906726,108900.0,108890.0,0.8713716]
[1756565294765,0.6906726,108900.0,108890.0,1.0279316]
[1756565294986,0.6906726,108900.0,108890.0,1.0310216]
[1756565295192,0.6906726,108900.0,108890.0,1.0300216]
[1756565295395,0.6906726,108900.0,108890.0,1.0280216]
[1756565296438,0.6906726,108900.0,108890.0,1.0290216]
[1756565297090,0.23282533,108910.0,108890.0,1.0290216]
[1756565297297,0.6916727,108900.0,108890.0,0.8713716]
[1756565297516,0.00327746,108910.0,108900.0,0.18365472]
[1756565297732,0.34861376,108910.0,108900.0,0.43846473]
[1756565298164,0.00327746,108910.0,108900.0,0.68846473]
[1756565298421,0.34861376,108910.0,108900.0,0.71607173]
[1756565299588,0.34861376,108910.0,108900.0,0.55931173]
[1756565299796,0.34861376,108910.0,108900.0,0.71615173]
[1756565301170,0.00327746,108910.0,108900.0,0.71615173]
[1756565301374,0.34861376,108910.0,108900.0,0.71815173]
[1756565302018,0.00327746,108910.0,108900.0,0.71815173]
[1756565302360,0.00327746,108910.0,108900.0,0.71915173]
[1756565304038,0.00327746,108910.0,108900.0,0.56231173]
[1756565304249,0.00327746,108910.0,108900.0,0.71899173]
[1756565304653,0.00327746,108910.0,108900.0,0.56231173]
[1756565304986,0.00327746,108910.0,108900.0,0.71891173]
[1756565306862,0.00327746,108910.0,108900.0,1.06424803]
[1756565307064,0.00327746,108910.0,108900.0,1.33334803]
[1756565307659,0.00327746,108910.0,108900.0,0.98801173]
[1756565307863,0.00327746,108910.0,108900.0,1.33334803]
[1756565308175,0.00327746,108910.0,108900.0,0.98801173]
[1756565308383,0.00327746,108910.0,108900.0,1.33334803]
[1756565310484,0.00327746,108910.0,108900.0,0.98801173]
[1756565310710,0.00327746,108910.0,108900.0,1.33334803]
[1756565312286,0.00327746,108910.0,108900.0,0.98801173]
[1756565312492,0.00327746,108910.0,108900.0,1.33334803]
[1756565314332,0.00327746,108910.0,108900.0,0.98801173]
[1756565314544,0.00327746,108910.0,108900.0,1.33334803]
[1756565314922,0.00327746,108910.0,108900.0,0.98801173]
[1756565315157,0.00327746,108910.0,108900.0,1.33334803]
[1756565321312,0.00327746,108910.0,108900.0,0.98801173]
[1756565321488,0.00327746,108910.0,108900.0,1.69962315]
[1756565321930,0.00327746,108910.0,108900.0,1.35428685]
[1756565322455,0.00327746,108910.0,108900.0,1.3953484]
[1756565323424,0.00327746,108910.0,108900.0,1.7406847]
[1756565324214,0.00327746,108910.0,108900.0,1.3953484]
[1756565324527,0.00327746,108910.0,108900.0,0.8936521]
[1756565326183,0.00327746,108910.0,108900.0,2.1811847]
[1756565326585,0.00327746,108910.0,108900.0,1.4905121]
[1756565326787,0.00327746,108910.0,108900.0,2.1811847]
[1756565327618,0.00327746,108910.0,108900.0,1.6792884]
[1756565327842,0.00327746,108910.0,108900.0,1.8358084]
[1756565328212,0.00327746,108910.0,108900.0,2.1811447]
[1756565328632,0.00327746,108910.0,108900.0,2.4018647]
[1756565329430,0.00327746,108910.0,108900.0,2.0565284]
[1756565334494,0.00327746,108910.0,108900.0,1.7109521]
[1756565335103,0.00327746,108910.0,108900.0,2.0562884]
[1756565335779,0.00327746,108910.0,108900.0,1.9000084]
[1756565335979,0.00327746,108910.0,108900.0,2.0562484]
[1756565336196,0.00327746,108910.0,108900.0,1.7109121]
[1756565336347,0.00327746,108910.0,108900.0,2.0562484]
[1756565336543,0.00327746,108910.0,108900.0,2.0509121]
[1756565336751,0.00327746,108910.0,108900.0,2.44580499]
[1756565337944,0.00327746,108910.0,108900.0,2.79114129]
[1756565338152,0.00327746,108910.0,108900.0,2.44580499]
[1756565340328,0.00327746,108910.0,108900.0,2.10046869]
[1756565340548,0.00327746,108910.0,108900.0,2.44580499]
[1756565341882,0.00327746,108910.0,108900.0,2.10046869]
[1756565342118,0.00327746,108910.0,108900.0,2.44580499]
[1756565342997,0.00327746,108910.0,108900.0,2.40450344]
[1756565346150,0.00327746,108910.0,108900.0,1.96420344]
[1756565346563,0.00327746,108910.0,108900.0,1.96392344]
[1756565347273,0.00327746,108910.0,108900.0,1.61866714]
[1756565347440,0.00327746,108910.0,108900.0,1.96400344]
[1756565348733,0.34861376,108910.0,108900.0,1.09661832]
[1756565348971,0.34861376,108910.0,108900.0,1.20310173]
[1756565349408,0.34861376,108910.0,108900.0,1.20613173]
[1756565349661,0.00327746,108910.0,108900.0,1.20817173]
[1756565349902,0.34861376,108910.0,108900.0,1.20817173]
[1756565350122,0.34861376,108910.0,108900.0,1.20613173]
[1756565350746,0.34861376,108910.0,108900.0,1.20817173]
[1756565353168,0.00327746,108910.0,108900.0,1.55350803]
[1756565353464,0.00327746,108910.0,108900.0,1.39746803]
[1756565353673,0.00327746,108910.0,108900.0,1.55342803]
[1756565354036,0.00327746,108910.0,108900.0,1.20809173]
[1756565354240,0.00327746,108910.0,108900.0,1.55342803]
[1756565354444,0.00327746,108910.0,108900.0,1.20809173]
[1756565354655,0.00327746,108910.0,108900.0,1.55342803]
[1756565355924,0.00327746,108910.0,108900.0,1.39746803]
[1756565356144,0.00327746,108910.0,108900.0,1.55354803]
[1756565356356,0.00327746,108910.0,108900.0,1.20821173]
[1756565357400,0.00327746,108910.0,108900.0,1.26795638]
[1756565357637,0.29943827,108920.0,108910.0,0.18363786]
[1756565357835,0.29958122,108920.0,108910.0,0.50325787]
[1756565358058,0.11596005,108920.0,108910.0,0.50325787]
[1756565359041,0.11596005,108920.0,108910.0,0.75325787]
[1756565360640,0.00014295,108920.0,108910.0,0.78086487]
[1756565360864,0.00014295,108920.0,108910.0,0.78399487]
[1756565361031,0.34493532,108920.0,108910.0,0.78399487]
[1756565363387,0.34493532,108920.0,108910.0,1.05309487]
[1756565365199,0.34493532,108920.0,108910.0,1.04996487]
[1756565365412,0.34493532,108920.0,108910.0,1.05309487]
[1756565369659,0.34493532,108920.0,108910.0,1.05510487]
[1756565370376,0.52855632,108920.0,108910.0,0.89906487]
[1756565370722,0.52855632,108920.0,108910.0,1.05470487]
[1756565370942,0.34493532,108920.0,108910.0,1.05470487]
[1756565372664,0.00014295,108920.0,108910.0,1.05470487]
[1756565375128,0.00014295,108920.0,108910.0,0.89906487]
[1756565375335,0.00014295,108920.0,108910.0,1.05458487]
[1756565377547,0.34491395,108920.0,108910.0,1.05458487]
[1756565381889,0.68968495,108920.0,108910.0,1.05458487]
[1756565382104,0.68968495,108920.0,108910.0,0.89392487]
[1756565382323,0.87330595,108920.0,108910.0,1.04932487]
[1756565382794,0.68968495,108920.0,108910.0,1.05245487]
[1756565383663,1.23532076,108920.0,108910.0,0.5897]
[1756565383885,1.2417875,108920.0,108910.0,0.47596]
[1756565384127,1.2693965,108920.0,108910.0,0.47596]
[1756565384582,1.26292976,108920.0,108910.0,0.47596]
[1756565385274,1.26292015,108920.0,108910.0,0.22592]
[1756565385482,1.26938297,108920.0,108910.0,0.22592]
[1756565385694,1.26938297,108920.0,108910.0,0.0706]
[1756565385915,1.35767929,108920.0,108910.0,0.22596]
[1756565386339,1.26292015,108920.0,108910.0,0.22596]
[1756565386553,1.26291392,108920.0,108910.0,0.22596]
[1756565387125,1.26291392,108920.0,108910.0,0.3206]
[1756565387553,1.26291392,108920.0,108910.0,0.47588]
[1756565388124,0.22860092,108920.0,108910.0,0.22588]
[1756565388328,1.26291392,108920.0,108910.0,0.22588]
[1756565393471,0.91814292,108920.0,108910.0,0.22588]
[1756565393680,0.91814292,108920.0,108910.0,0.23105]
[1756565396894,0.91812251,108920.0,108910.0,0.23105]
[1756565397541,0.91812233,108920.0,108910.0,0.23105]
[1756565398080,0.91812233,108920.0,108910.0,0.07577]
[1756565398308,0.57335133,108920.0,108910.0,0.23081]
[1756565398514,0.91812233,108920.0,108910.0,0.23081]
[1756565401424,0.91812233,108920.0,108910.0,0.22875]
[1756565401630,0.91812233,108920.0,108910.0,0.22867]
[1756565402043,0.91812233,108920.0,108910.0,0.49777]
[1756565404326,0.91812233,108920.0,108910.0,0.49983]
[1756565405991,0.91812233,108920.0,108910.0,0.34487]
[1756565406208,0.91812233,108920.0,108910.0,0.49971]
[1756565406437,0.9181269,108920.0,108910.0,0.49971]
[1756565406859,0.9181269,108920.0,108910.0,0.49765]
[1756565407064,0.91812803,108920.0,108910.0,0.49765]
[1756565407686,0.91812803,108920.0,108910.0,0.49971]
[1756565408346,0.91812803,108920.0,108910.0,0.34281]
[1756565408553,0.91812803,108920.0,108910.0,0.49769]
[1756565409185,0.22858603,108920.0,108910.0,0.49975]
[1756565409435,0.91812803,108920.0,108910.0,0.49975]
[1756565409634,0.91812803,108920.0,108910.0,0.34487]
[1756565409841,0.91812803,108920.0,108910.0,0.49975]
[1756565411554,1.00642435,108920.0,108910.0,0.49975]
[1756565411754,1.60289903,108920.0,108910.0,0.3397]
[1756565412128,1.62920639,108920.0,108910.0,0.49458]
[1756565413340,1.62274605,108920.0,108910.0,0.49458]
[1756565413546,1.62921122,108920.0,108910.0,0.49458]
[1756565413942,1.62921122,108920.0,108910.0,0.22548]
[1756565414708,1.71750754,108920.0,108910.0,0.22548]
[1756565415579,1.71750754,108920.0,108910.0,0.22544]
[1756565415723,1.71750754,108920.0,108910.0,0.0706]
[1756565415927,1.71750754,108920.0,108910.0,0.22544]
[1756565416979,1.71752797,108920.0,108910.0,0.22544]
[1756565418067,1.62923165,108920.0,108910.0,0.22544]
[1756565418244,1.62923165,108920.0,108910.0,0.22855]
[1756565420567,1.6292301,108920.0,108910.0,0.22855]
[1756565421651,1.2844591,108920.0,108910.0,0.22855]
[1756565423190,1.2844591,108920.0,108910.0,0.23066]
[1756565425059,0.9396881,108920.0,108910.0,0.23066]
[1756565425268,1.2844591,108920.0,108910.0,0.23066]
[1756565426368,1.26461208,108920.0,108910.0,0.23066]
[1756565427405,1.25815036,108920.0,108910.0,0.41429786]
[1756565427614,1.25815036,108920.0,108910.0,0.23066]
[1756565427615,1.2646059,108920.0,108910.0,0.23066]
[1756565430075,0.5750639,108920.0,108910.0,0.23066]
[1756565430287,1.2646059,108920.0,108910.0,0.23066]
[1756565431073,1.26460598,108920.0,108910.0,0.23066]
[1756565431282,0.57506398,108920.0,108910.0,0.23066]
[1756565431522,0.92460598,108920.0,108910.0,0.23066]
[1756565431683,0.91814473,108920.0,108910.0,0.23066]
[1756565432628,0.04498173,108920.0,108910.0,0.50727787]
[1756565433035,0.38975273,108920.0,108910.0,0.50727787]
[1756565433774,0.57337373,108920.0,108910.0,0.50727787]
[1756565433948,0.38975273,108920.0,108910.0,0.50727787]
[1756565434713,0.38975145,108920.0,108910.0,0.50727787]
[1756565434928,0.89053445,108920.0,108910.0,0.23066]
[1756565435277,0.89053445,108920.0,108910.0,0.07582]
[1756565435483,0.89699499,108920.0,108910.0,0.22544]
[1756565435734,0.92460399,108920.0,108910.0,0.22544]
[1756565436729,0.92460399,108920.0,108910.0,0.2285]
[1756565437974,0.23506199,108920.0,108910.0,0.2285]
[1756565438155,0.90737584,108920.0,108910.0,0.2285]
[1756565438399,0.92460488,108920.0,108910.0,0.2285]
[1756565438609,0.23506288,108920.0,108910.0,0.2285]
[1756565438816,0.92460488,108920.0,108910.0,0.2285]
[1756565440087,0.91814399,108920.0,108910.0,0.2285]
[1756565440438,0.91814399,108920.0,108910.0,0.23061]
[1756565441089,0.22860199,108920.0,108910.0,0.23061]
[1756565441281,0.91814399,108920.0,108910.0,0.23061]
[1756565441729,0.91814337,108920.0,108910.0,0.23061]
[1756565444502,0.91814337,108920.0,108910.0,0.41424786]
[1756565445910,0.91814337,108920.0,108910.0,0.41624786]
[1756565446766,0.22860137,108920.0,108910.0,0.41624786]
[1756565446987,0.57337237,108920.0,108910.0,0.41624786]
[1756565447443,0.57337237,108920.0,108910.0,0.41724786]
[1756565447661,0.91814337,108920.0,108910.0,0.41724786]
[1756565448317,0.91814337,108920.0,108910.0,0.51022787]
[1756565448492,0.57337237,108920.0,108910.0,0.51022787]
[1756565448992,0.57336958,108920.0,108910.0,0.51022787]
[1756565449408,0.38974858,108920.0,108910.0,0.77932787]
[1756565449828,0.57336958,108920.0,108910.0,0.77932787]
[1756565450207,0.57336958,108920.0,108910.0,1.02932787]
[1756565451552,0.20098958,108920.0,108910.0,1.02932787]
[1756565451772,0.54576058,108920.0,108910.0,1.02932787]
[1756565451990,0.20098958,108920.0,108910.0,1.02932787]
[1756565452264,0.54576058,108920.0,108910.0,1.02932787]
[1756565453676,0.89053158,108920.0,108910.0,1.02932787]
[1756565459499,0.20098958,108920.0,108910.0,1.02932787]
[1756565459746,0.89053742,108920.0,108910.0,1.02932787]
[1756565460664,0.89053742,108920.0,108910.0,0.84569001]
[1756565460896,0.91814442,108920.0,108910.0,0.84569001]
[1756565461626,0.91814442,108920.0,108910.0,0.69085001]
[1756565462105,0.91814442,108920.0,108910.0,0.84569001]
[1756565462765,0.91814442,108920.0,108910.0,0.69085001]
[1756565462958,0.22860242,108920.0,108910.0,0.84569001]
[1756565463168,0.91814442,108920.0,108910.0,0.84569001]
[1756565463674,0.91814442,108920.0,108910.0,0.69085001]
[1756565463848,0.91814442,108920.0,108910.0,0.84569001]
[1756565466677,0.91814442,108920.0,108910.0,0.84048001]
[1756565467077,0.91814442,108920.0,108910.0,0.59048001]
[1756565467280,0.92460759,108920.0,108910.0,0.4975]
[1756565467502,0.92460759,108920.0,108910.0,0.51591]
[1756565467724,0.92460759,108920.0,108910.0,0.4975]
[1756565468768,1.26937859,108920.0,108910.0,0.3427]
[1756565469023,1.24568395,108920.0,108910.0,0.3427]
[1756565469230,1.24568395,108920.0,108910.0,0.4975]
[1756565469231,0.25492817,108920.0,108910.0,0.4975]
[1756565469438,0.94447017,108920.0,108910.0,0.4975]
[1756565471760,1.67392403,108920.0,108910.0,0.3427]
[1756565472152,1.67392403,108920.0,108910.0,0.4975]
[1756565472775,1.44481592,108920.0,108910.0,0.4975]
[1756565472981,1.61136506,108920.0,108910.0,0.4975]
[1756565473184,1.61136506,108920.0,108910.0,0.1578]
[1756565474012,1.61136506,108920.0,108910.0,0.1568]
[1756565475226,1.61136506,108920.0,108910.0,0.1548]
[1756565475449,1.61236506,108920.0,108910.0,0.1548]
[1756565475818,1.70066138,108920.0,108910.0,0.1548]
[1756565476016,1.70066138,108920.0,108890.0,0.6649443]
[1756565476017,0.18365472,108900.0,108890.0,0.6649443]
[1756565476230,0.89042466,108900.0,108890.0,0.75792431]
[1756565476428,0.89042466,108900.0,108890.0,0.8219043]
[1756565476674,0.91803866,108900.0,108890.0,0.8219043]
[1756565477062,0.91803866,108900.0,108890.0,0.5719043]
[1756565477317,0.91803866,108900.0,108890.0,0.5729043]
[1756565478535,0.91803866,108900.0,108890.0,0.5749043]
[1756565479712,0.90081072,108900.0,108890.0,0.5749043]
[1756565480020,0.9180144,108900.0,108890.0,0.8249043]
[1756565481022,0.9180144,108900.0,108890.0,0.5749043]
[1756565482658,0.9180144,108900.0,108890.0,0.4201043]
[1756565482868,0.9180144,108900.0,108890.0,0.5749043]
[1756565483069,0.8904004,108900.0,108890.0,0.5749043]
[1756565483496,0.2008584,108900.0,108890.0,0.5749043]
[1756565483655,0.8904004,108900.0,108890.0,0.5749043]
[1756565484086,0.8904004,108900.0,108890.0,0.8249043]
[1756565486719,0.8904004,108900.0,108890.0,0.6769]
[1756565486842,1.95962608,108900.0,108890.0,0.253]
[1756565487077,1.64111481,108900.0,108890.0,0.003]
[1756565487424,6.66873181,108900.0,108890.0,0.003]
[1756565487865,6.66873011,108900.0,108890.0,0.002]
[1756565488293,0.52367159,108890.0,108880.0,0.15804]
[1756565488501,6.23041727,108890.0,108880.0,0.15804]
[1756565488719,1.31871359,108890.0,108880.0,0.16125]
[1756565488945,1.23041727,108890.0,108880.0,0.16125]
[1756565489217,1.23041727,108890.0,108880.0,0.16326]
[1756565490245,0.54087527,108890.0,108880.0,0.16326]
[1756565490471,1.2304008,108890.0,108880.0,0.16326]
[1756565490638,1.2580188,108890.0,108880.0,0.16326]
[1756565492740,0.18368846,108880.0,108870.0,0.25]
[1756565492915,0.87323046,108880.0,108870.0,0.41366]
[1756565493331,0.91803569,108880.0,108870.0,0.41366]
[1756565493534,0.90084946,108880.0,108870.0,0.41366]
[1756565494103,0.90084946,108880.0,108870.0,0.16513677]
[1756565494350,0.91803752,108880.0,108870.0,0.16513677]
[1756565495969,0.91803752,108880.0,108870.0,0.16713677]
[1756565496956,0.91803752,108880.0,108870.0,0.43623677]
[1756565497162,0.9180428,108880.0,108870.0,0.43623677]
[1756565497976,0.9180428,108880.0,108870.0,0.68623677]
[1756565501204,0.91805137,108880.0,108870.0,0.68623677]
[1756565503234,0.92450292,108880.0,108870.0,0.68623677]
[1756565508373,0.92451756,108880.0,108870.0,0.68623677]
[1756565509885,0.70805158,108880.0,108870.0,0.68623677]
[1756565510535,0.89174004,108880.0,108870.0,0.68623677]
[1756565511721,0.89044701,108880.0,108870.0,0.68623677]
[1756565512106,0.89045284,108880.0,108870.0,0.68623677]
[1756565512518,0.89045284,108880.0,108870.0,0.70464677]
[1756565512733,0.89045284,108880.0,108870.0,0.68623677]
[1756565516234,0.91032154,108880.0,108870.0,0.68623677]
[1756565516430,0.22077954,108880.0,108870.0,0.68623677]
[1756565516724,0.89045284,108880.0,108870.0,0.68623677]
[1756565519598,0.20091084,108880.0,108870.0,0.68623677]
[1756565519807,0.91032525,108880.0,108870.0,0.68623677]
[1756565521552,0.91035356,108880.0,108870.0,0.68623677]
[1756565521985,0.91682256,108880.0,108870.0,0.68623677]
[1756565522188,0.91682319,108880.0,108870.0,0.68623677]
[1756565522626,0.91682319,108880.0,108870.0,0.68555677]
[1756565523042,0.91682319,108880.0,108870.0,0.43555677]
[1756565524113,0.91682319,108880.0,108870.0,0.68555677]
[1756565524321,0.91682319,108880.0,108870.0,0.52779677]
[1756565524530,0.91682319,108880.0,108870.0,0.68559677]
[1756565525160,0.91682319,108880.0,108870.0,0.43559677]
[1756565526004,0.91682319,108880.0,108870.0,0.27257677]
[1756565526228,1.26159419,108880.0,108870.0,0.16127677]
[1756565526440,1.60159419,108880.0,108870.0,0.16131677]
[1756565526658,1.62921519,108880.0,108870.0,0.00347677]
[1756565526894,1.62921519,108880.0,108870.0,0.16135677]
[1756565527355,1.62921519,108880.0,108870.0,0.15935677]
[1756565527555,1.71751151,108880.0,108870.0,0.15835677]
[1756565529654,1.62921519,108880.0,108870.0,0.15835677]
[1756565532048,1.62919407,108880.0,108870.0,0.15835677]
[1756565532658,0.59488107,108880.0,108870.0,0.15835677]
[1756565532877,1.62919303,108880.0,108870.0,0.15835677]
[1756565533616,1.62919303,108880.0,108870.0,0.16136677]
[1756565535261,0.59488003,108880.0,108870.0,0.16136677]
[1756565535471,1.28442203,108880.0,108870.0,0.16346677]
[1756565535700,1.2844196,108880.0,108870.0,0.16346677]
[1756565535889,1.6291906,108880.0,108870.0,0.16346677]
[1756565536459,1.6291906,108880.0,108870.0,0.16136677]
[1756565536856,1.67759003,108880.0,108870.0,0.16136677]
[1756565537065,1.2844196,108880.0,108870.0,0.16136677]
[1756565537889,1.2844196,108880.0,108870.0,0.16346677]
[1756565542723,0.59487477,108880.0,108870.0,0.16346677]
[1756565542929,1.26454373,108880.0,108870.0,0.16346677]
[1756565543164,1.2304612,108880.0,108870.0,0.16346677]
[1756565543943,0.2009192,108880.0,108870.0,0.44015211]
[1756565544142,0.01723074,108880.0,108870.0,0.44015211]
[1756565544371,0.344771,108890.0,108880.0,0.18368291]
[1756565544587,0.36199711,108890.0,108880.0,0.55106292]
[1756565544887,0.5456687,108890.0,108880.0,0.55106292]
[1756565545322,0.52844259,108890.0,108880.0,0.55106292]
[1756565545905,0.345771,108890.0,108880.0,0.55106292]
[1756565546325,0.345771,108890.0,108880.0,0.57867792]
[1756565546775,0.001,108890.0,108880.0,0.57867792]
[1756565546977,0.345771,108890.0,108880.0,0.64931792]
[1756565547101,0.345771,108890.0,108880.0,0.89931792]
[1756565547303,0.001,108890.0,108880.0,0.89931792]
[1756565548112,0.53779371,108900.0,108890.0,0.18367159]
[1756565548313,0.53779371,108900.0,108890.0,0.34502159]
[1756565548516,0.53779371,108900.0,108890.0,0.34717159]
[1756565548919,0.19283745,108900.0,108890.0,0.34717159]
[1756565549320,0.53779371,108900.0,108890.0,0.34717159]
[1756565550119,0.53779371,108900.0,108890.0,0.59717159]
[1756565551067,0.53879371,108900.0,108890.0,0.59717159]
[1756565551687,0.53879371,108900.0,108890.0,0.41354]
[1756565551896,0.53879371,108900.0,108890.0,0.59721159]
[1756565552107,0.53879371,108900.0,108890.0,0.41354]
[1756565552377,0.19383745,108900.0,108890.0,0.41354]
[1756565552589,0.53879371,108900.0,108890.0,0.59721159]
[1756565553400,0.19383745,108900.0,108890.0,0.59721159]
[1756565554042,0.53879371,108900.0,108890.0,0.41366]
[1756565554544,0.53879371,108900.0,108890.0,0.41151]
[1756565554784,0.53879371,108900.0,108890.0,0.25315]
[1756565555021,0.53879371,108900.0,108890.0,0.40836]
[1756565555228,0.53879371,108900.0,108890.0,0.15836]
[1756565555438,0.19383745,108900.0,108890.0,0.15836]
[1756565555650,0.53879371,108900.0,108890.0,0.15836]
[1756565556917,0.53879371,108900.0,108890.0,0.16151]
[1756565557613,0.53879371,108900.0,108890.0,0.00315]
[1756565557825,0.53879371,108900.0,108890.0,0.16155]
[1756565558055,0.53879371,108900.0,108890.0,0.00315]
[1756565558251,0.55808346,108900.0,108890.0,0.16151]
[1756565558471,0.53879371,108900.0,108890.0,0.16151]
[1756565561201,0.19383745,108900.0,108890.0,0.16366]
[1756565561392,0.53879371,108900.0,108890.0,0.16366]
[1756565561816,0.53879371,108900.0,108890.0,0.16151]
[1756565563081,0.32714396,108900.0,108890.0,0.16151]
[1756565563243,0.51082957,108900.0,108890.0,0.16151]
[1756565563986,0.5200123,108900.0,108890.0,0.16151]
[1756565565963,0.19286834,108900.0,108890.0,0.16366]
[1756565566155,0.5378246,108900.0,108890.0,0.16366]
[1756565567177,5.8999741,108900.0,108890.0,0.0053]
[1756565567410,5.90008612,108900.0,108890.0,0.16342]
[1756565569964,5.91435675,108900.0,108890.0,0.00315]
[1756565570115,0.18367159,108890.0,108880.0,0.46347501]
[1756565570314,5.52868386,108890.0,108880.0,0.62358501]
[1756565570522,0.52868386,108890.0,108880.0,0.62358501]
[1756565571684,0.52868386,108890.0,108880.0,0.62458501]
[1756565572088,0.52868386,108890.0,108880.0,1.05827347]
[1756565572440,0.54591157,108890.0,108880.0,1.05827347]
[1756565572644,0.52868386,108890.0,108880.0,1.05827347]
[1756565573648,0.54591178,108890.0,108880.0,1.05827347]
[1756565574616,0.52868386,108890.0,108880.0,1.05827347]
[1756565574796,0.54592142,108890.0,108880.0,1.05827347]
[1756565575344,0.54592142,108890.0,108880.0,0.547715]
[1756565575345,0.93848528,108890.0,108880.0,0.547715]
[1756565575558,0.96480885,108890.0,108880.0,0.68144]
[1756565575734,0.96480885,108890.0,108880.0,0.6783]
[1756565575735,0.94487526,108890.0,108880.0,0.6783]
[1756565575904,0.94487545,108890.0,108880.0,0.68144]
[1756565576105,0.94487545,108890.0,108880.0,0.43144]
[1756565576306,0.92501607,108890.0,108880.0,0.43144]
[1756565576910,0.92501607,108890.0,108880.0,0.16234]
[1756565577758,0.96946396,108890.0,108880.0,0.00414]
[1756565577945,0.96946396,108890.0,108880.0,0.1596]
[1756565578145,0.96946396,108890.0,108880.0,0.16274]
[1756565578804,0.92501607,108890.0,108880.0,0.16274]
[1756565579357,0.58010035,108890.0,108880.0,0.16274]
[1756565582532,0.58010035,108890.0,108880.0,0.16473]
[1756565582786,0.54601797,108890.0,108880.0,0.16473]
[1756565584106,0.52878041,108890.0,108880.0,0.16473]